[Event "FIDE World School-ch O-15 2025"]
[Site "Vrnjacka Banja"]
[Date "2025.03.20"]
[Round "1.1"]
[White "Scheglov, Gleb"]
[Black "Jovanovic, David"]
[Result "1-0"]
[Annotator "TA"]
[ECO "E07"]
[WhiteElo "2306"]
[BlackElo "1858"]
[PlyCount "47"]
[EventDate "2025.03.19"]
[EventType "swiss"]
[EventCountry "SRB"]
[SourceTitle "playchess.com"]
[Source "ChessBase"]
[SourceQuality "1"]
[TimeControl "5400+30"]

{[%evp 20,47,25,17,28,12,29,32,45,37,65,69,81,58,271,161,175,168,151,161,179,179,554,281,1534,1527,1518,1518,29995,1681]} 1. Nf3 {[%emt 0:00:32]} Nf6 {[%emt 0:00:18]} 2. c4 {[%emt 0:00:09]} e6 {[%emt 0:00:26]} 3. g3 {[%emt 0:00:07]} d5 {[%emt 0:00:17]} 4. Bg2 {[%emt 0:01:28]} Be7 {[%emt 0:01:21]} 5. O-O {[%emt 0:00:48]} O-O {[%emt 0:00:17]} 6. d4 {[%emt 0:00:07]} c6 {[%emt 0:01:02]} 7. Nc3 {[%emt 0:09:11]} Nbd7 {[%emt 0:01:21]} 8. Nd2 {[%emt 0:07:59][%cal Bf3d2,Bd2e4,Be4g5,Bg5h7][%mdl 32]} b6 {[%emt 0:02:10]} 9. b3 {[%emt 0:03:20]} Bb7 {[%emt 0:01:01]} 10. Bb2 {[%emt 0:02:51]} Rc8 {[%emt 0:00:54]} 11. e4 {[%emt 0:01:38]} dxe4 {[%emt 0:01:34] E07: Closed Catalan: Main Line (5 Nf3 0-0 6 0-0 Nbd7).} 12. Ndxe4 {[%emt 0:00:42]} Qc7 {[%emt 0:02:09]} 13. Re1 {[%emt 0:11:36]} Qb8 $146 {[%emt 0:07:57] White is slightly better.} (13... Rfd8 14. Qc2 Nxe4 15. Nxe4 c5 16. dxc5 Nxc5 17. Qc3 Bf8 18. Nxc5 bxc5 19. Rad1 Bxg2 20. Kxg2 {½-½ Lipka,J (2405)-Polak,T (2527) AUT-chT2O 1920 2019 (7.1)}) 14. Qc2 {[%emt 0:10:40]} c5 {[%emt 0:02:21] [#]} 15. d5 {[%emt 0:03:56]} exd5 {[%emt 0:10:53]} 16. Ng5 {[%emt 0:05:42][%csl LRd5,LRe7]} Ne4 $2 {[%emt 0:04:44]} 17. Ncxe4 {[%emt 0:05:17]} (17. Nxd5 Bxg5 18. Bxe4 Kh8 19. Bxh7 Rcd8) (17. Nxh7 $142 Rfe8 18. Nxd5 Bxd5 19. cxd5 (19. Bxe4 Bb7 $18)) 17... dxe4 $18 {[%emt 0:01:51] [#]} 18. Nxh7 {[%emt 0:01:12][%mdl 512]} Rfe8 {[%emt 0:14:35]} 19. Bxe4 {[%emt 0:01:27] White is more active.} Bxe4 {[%emt 0:00:30]} 20. Rxe4 {[%emt 0:00:39]} f5 {[%emt 0:06:58] Inhibits Rg4.} (20... Rcd8 {is a better chance.} 21. Rae1 Bf6) 21. Re6 {[%emt 0:02:03]} Kxh7 $2 {[%emt 0:04:06]} (21... Nf8) 22. Qxf5+ {[%emt 0:00:11]} ({Less strong is} 22. Rae1 Bf6 $16) 22... Kg8 {[%emt 0:00:36] [#]} 23. Bxg7 $1 {[%emt 0:09:32]} Nf8 {[%emt 0:07:06] Wards off Rg6} (23... Bf8 24. Bb2) 24. Be5 {[%emt 0:00:23] White took control after the opening.   Weighted Error Value: White=0.55/Black=1.33  Loses game:     	---       	Black=1      Mistake:       	White=1     	Black=2      Inaccurate:     	White=1     	Black=1      OK:         	White=3     	Black=2      Best:        	White=1     	Black=1      Brilliant:      	White=1     	---} (24. Rg6 $142 Nxg6 25. Qxg6 Qxg3+ 26. fxg3 (26. hxg3 Red8 27. Bh6+ Kh8 28. Qg7#) 26... Red8 27. Bh6+ Kh8 28. Qg7#) 1-0

[Event "FIDE World School-ch O-15 2025"]
[Site "Vrnjacka Banja"]
[Date "2025.03.20"]
[Round "1.2"]
[White "Nedeljkovic, Velja"]
[Black "Tabatadze, Erekle"]
[Result "0-1"]
[Annotator "NA RC"]
[ECO "B07"]
[WhiteElo "1856"]
[BlackElo "2180"]
[PlyCount "70"]
[EventDate "2025.03.19"]
[EventType "swiss"]
[EventCountry "SRB"]
[SourceTitle "playchess.com"]
[Source "ChessBase"]
[SourceQuality "1"]
[TimeControl "5400+30"]

1. e4 {[%emt 0:00:34]} d6 {[%emt 0:02:33]} 2. d4 {[%emt 0:01:47]} Nf6 {[%emt 0:01:52]} 3. Nc3 {[%emt 0:03:22]} e5 {[%emt 0:02:48]} 4. dxe5 {[%emt 0:03:52]} dxe5 {[%emt 0:00:06]} 5. Qxd8+ {[%emt 0:01:38]} Kxd8 {[%emt 0:00:12]} 6. Bg5 {[%emt 0:00:44]} Be6 {[%emt 0:00:34]} 7. O-O-O+ {[%emt 0:02:34]} Nbd7 {[%emt 0:10:46]} 8. Nf3 {[%emt 0:05:43]} Bd6 {[%emt 0:00:55]} 9. Bd3 {[%emt 0:24:49]} h6 {[%emt 0:07:17]} 10. Bh4 {[%emt 0:04:12]} g5 {[%emt 0:16:48]} 11. Bg3 {[%emt 0:01:32]} Ke7 {[%emt 0:04:27]} 12. Nb5 {[%emt 0:05:45]} Nh5 {[%emt 0:03:56]} 13. Nxd6 {[%emt 0:04:13]} cxd6 {[%emt 0:00:09]} 14. b3 {[%emt 0:02:04]} Nc5 {[%emt 0:05:56]} 15. Kb2 {[%emt 0:04:38]} Nxd3+ {[%emt 0:13:52]} 16. Rxd3 {[%emt 0:00:10]} f5 {[%emt 0:00:45]} 17. exf5 {[%emt 0:01:08]} Bxf5 {[%emt 0:00:48]} 18. Re3 {[%emt 0:00:31]} Nf4 {[%emt 0:01:47]} 19. Bxf4 {[%emt 0:05:50]} gxf4 {[%emt 0:00:06]} 20. Rc3 {[%emt 0:01:16]} Rac8 {[%emt 0:00:42]} 21. Rxc8 {[%emt 0:00:32]} Rf8 {[%emt 0:24:41]} 22. Rd8 Rxd8 {[%emt 0:00:00]} 23. c4 {[%emt 0:01:18]} Rc8 {[%emt 0:00:00]} 24. Rf1 {[%emt 0:24:18]} b5 25. Rc1 {[%emt 0:00:00]} bxc4 {[%emt 0:00:00]} 26. Rxc4 {[%emt 0:00:00]} Kf6 {[%emt 0:00:00]} 27. Rxc8 {[%emt 0:00:00]} Bxc8 {[%emt 0:00:00]} 28. Kc3 {[%emt 0:00:00]} d5 {[%emt 0:00:00]} 29. g3 {[%emt 0:00:00]} Kf5 {[%emt 0:00:00]} 30. Nh4+ {[%emt 0:00:00]} Kg4 {[%emt 0:00:00]} 31. Ng6 {[%emt 0:00:00]} fxg3 {[%emt 0:00:00]} 32. hxg3 {[%emt 0:00:00]} Kf3 {[%emt 0:00:00]} 33. Nxe5+ {[%emt 0:00:00]} Kxf2 {[%emt 0:00:00]} 34. g4 {[%emt 0:00:00]} Ke3 {[%emt 0:00:00]} 35. Nf7 {[%emt 0:00:00]} d4+ {[%emt 0:00:00]} 0-1

[Event "FIDE World School-ch O-15 2025"]
[Site "Vrnjacka Banja"]
[Date "2025.03.20"]
[Round "1.3"]
[White "Tulendinov, Dinmukhammed"]
[Black "Okhitin, Lev"]
[Result "1-0"]
[Annotator "NA RC"]
[ECO "B08"]
[WhiteElo "2173"]
[BlackElo "1843"]
[PlyCount "47"]
[EventDate "2025.03.19"]
[EventType "swiss"]
[EventCountry "SRB"]
[SourceTitle "playchess.com"]
[Source "ChessBase"]
[SourceQuality "1"]
[TimeControl "5400+30"]

1. e4 {[%emt 0:00:02]} c5 {[%emt 0:00:06]} 2. d4 {[%emt 0:00:05]} cxd4 {[%emt 0:00:11]} 3. Qxd4 {[%emt 0:00:02]} Nc6 {[%emt 0:00:12]} 4. Qd3 {[%emt 0:00:02]} d6 {[%emt 0:00:50]} 5. Nc3 {[%emt 0:00:18]} g6 {[%emt 0:00:15]} 6. Nf3 {[%emt 0:00:05]} Bg7 {[%emt 0:00:08]} 7. Be2 {[%emt 0:00:10]} Nf6 {[%emt 0:00:03]} 8. O-O {[%emt 0:00:06]} O-O {[%emt 0:00:04]} 9. Nd5 {[%emt 0:00:02]} Nd7 {[%emt 0:05:34]} 10. c3 {[%emt 0:00:05]} Nde5 {[%emt 0:00:40]} 11. Nxe5 {[%emt 0:04:15]} Nxe5 {[%emt 0:00:07]} 12. Qc2 {[%emt 0:11:37]} e6 {[%emt 0:20:33]} 13. Ne3 {[%emt 0:03:56]} b6 {[%emt 0:19:39]} 14. f4 {[%emt 0:03:58]} Nc6 {[%emt 0:00:29]} 15. Bd2 {[%emt 0:14:36]} Ne7 {[%emt 0:05:13]} 16. Rad1 {[%emt 0:02:54]} d5 {[%emt 0:05:40]} 17. Bc1 {[%emt 0:03:33]} Qd6 {[%emt 0:07:37]} 18. Kh1 {[%emt 0:08:34]} f5 {[%emt 0:06:43]} 19. exd5 {[%emt 0:02:12]} exd5 {[%emt 0:00:06]} 20. Nxd5 {[%emt 0:11:18]} Nxd5 {[%emt 0:00:18]} 21. Bf3 {[%emt 0:00:01]} Bb7 {[%emt 0:06:34]} 22. c4 {[%emt 0:06:04]} Rac8 {[%emt 0:02:19]} 23. Qa4 {[%emt 0:04:10]} Qb4 {[%emt 0:08:54]} 24. Bxd5+ {[%emt 0:00:21]} 1-0

[Event "FIDE World School-ch O-15 2025"]
[Site "Vrnjacka Banja"]
[Date "2025.03.20"]
[Round "1.4"]
[White "Hettigoda, Dhanodya Budmina"]
[Black "Leu, Dragos Stefan"]
[Result "1-0"]
[Annotator "TA"]
[ECO "B92"]
[WhiteElo "1837"]
[BlackElo "2165"]
[PlyCount "83"]
[EventDate "2025.03.19"]
[EventType "swiss"]
[EventCountry "SRB"]
[SourceTitle "playchess.com"]
[Source "ChessBase"]
[SourceQuality "1"]
[TimeControl "5400+30"]

{[%evp 18,83,22,8,23,31,68,65,60,57,66,50,59,28,78,62,125,104,99,93,145,104,289,278,244,249,293,287,288,229,237,151,164,159,197,179,197,202,202,192,200,187,310,278,359,331,418,261,277,259,455,427,812,796,863,834,5001,2572,29989,29990,29990,29991,29995,29996,29996,29997,29997,29995]} 1. e4 {[%emt 0:00:03]} c5 {[%emt 0:00:06]} 2. Nf3 {[%emt 0:00:25]} d6 {[%emt 0:00:07]} 3. d4 {[%emt 0:00:06]} cxd4 {[%emt 0:00:05]} 4. Nxd4 {[%emt 0:00:15]} Nf6 {[%emt 0:00:08]} 5. Nc3 {[%emt 0:00:05]} a6 {[%emt 0:00:03]} 6. Be3 {[%emt 0:04:57]} e5 {[%emt 0:00:27]} 7. Nb3 {[%emt 0:02:53]} Be6 {[%emt 0:00:41]} 8. Be2 {[%emt 0:04:33]} Nbd7 {[%emt 0:03:29]} 9. O-O {[%emt 0:02:48]} Be7 {[%emt 0:02:58]} 10. f4 {[%emt 0:04:52]} b5 {[%emt 0:19:53][%cal Bb7b5,Bb5c4][%mdl 32] B92: Sicilian Najdorf: 6 Be2.} 11. f5 {[%emt 0:12:44]} Bc4 {[%emt 0:02:04]} 12. Bxc4 {[%emt 0:06:15]} bxc4 {[%emt 0:00:01] White is slightly better.} 13. Nd2 {[%emt 0:01:43]} Qc7 {[%emt 0:01:19][%csl Oa6,Od6] Black has weak pawns} 14. Qe2 {[%emt 0:02:14]} Rc8 {[%emt 0:03:11]} 15. a4 $146 {[%emt 0:04:47]} (15. Rf3 d5 16. exd5 Nb6 17. Bxb6 Qxb6+ 18. Kh1 Qd4 19. Re1 O-O 20. Nde4 Nxd5 21. Nxd5 Qxd5 {1-0 Huang,P (1977)-Zheng,V (1822) British Columbia-ch U20 2016 (2.5)}) 15... a5 {[%emt 0:24:23]} (15... Qb7 $11 {keeps the balance.}) 16. Nb5 {[%emt 0:03:17]} Qd8 {[%emt 0:07:30]} (16... Qb7 $1 $14) 17. Nxc4 {[%emt 0:06:23]} Nxe4 {[%emt 0:00:45]} 18. Rfd1 $36 {[%emt 0:02:54][%mdl 2048] White has strong initiative. White is much more active.} Rc6 {[%emt 0:08:06]} ({Better is} 18... Ndf6) 19. Ba7 {[%emt 0:10:32]} Nef6 {[%emt 0:21:19] This costs Black the game.} (19... Ndf6 $16) 20. Ncxd6+ {[%emt 0:02:28]} Bxd6 {[%emt 0:00:59]} 21. Nxd6+ {[%emt 0:00:10]} Ke7 {[%emt 0:00:07]} 22. Nb5 {[%emt 0:02:57]} Qa8 {[%emt 0:00:39]} 23. Bd4 {[%emt 0:05:37]} Re8 {[%emt 0:02:41]} 24. Ra3 {[%emt 0:03:18]} (24. Bxe5 $2 {perishes.} Kf8 25. Qf2 (25. Rxd7 $2 Nxd7 26. Bxg7+ Kxg7 $19) 25... Nxe5 $19 (25... Rxe5 $2 26. c3 $19)) 24... Kf8 {[%emt 0:00:20]} 25. Bf2 {[%emt 0:00:46]} Rec8 {[%emt 0:01:07]} 26. Rc3 {[%emt 0:02:35]} Qa6 {[%emt 0:00:30]} 27. Rxc6 {[%emt 0:02:08]} Qxc6 {[%emt 0:00:12]} 28. c3 {[%emt 0:02:57]} Qc4 {[%emt 0:00:49]} 29. Qc2 {[%emt 0:00:34] [#]} Qg4 {[%emt 0:00:30]} (29... Rc6 $142 30. b3 Qf4) 30. h3 $18 {[%emt 0:01:41]} Qf4 {[%emt 0:00:27]} 31. Nd6 {[%emt 0:02:53]} Rb8 {[%emt 0:00:28] Dodges Qb3} 32. c4 {[%emt 0:01:29]} e4 {[%emt 0:00:34][%cal Be5e4,Be4f3,Bf3f2][%mdl 32]} 33. Ba7 {[%emt 0:02:08]} Rb4 {[%emt 0:00:31]} (33... Ra8) 34. c5 {[%emt 0:00:54] [#] and c6 should not be overlooked} Ne5 {[%emt 0:00:30]} (34... Qe3+ $142 35. Kh1 Rd4) 35. c6 {[%emt 0:00:57]} Nfg4 {[%emt 0:00:29]} 36. hxg4 {[%emt 0:01:08]} Nf3+ {[%emt 0:00:31]} 37. gxf3 {[%emt 0:00:09]} exf3 {[%emt 0:00:18]} 38. c7 {[%emt 0:01:37] White mates.} Qxg4+ {[%emt 0:00:29]} 39. Kh1 {[%emt 0:00:28]} f2 {[%emt 0:00:43]} 40. c8=Q+ {[%emt 0:00:12]} Ke7 {[%emt 0:00:05]} 41. Q8c7+ {[%emt 0:00:22]} (41. Bxf2 {leads to mate.} Qh3+ 42. Kg1 Rg4+) 41... Kf6 {[%emt 0:00:06]} 42. Qxf7+ {[%emt 0:02:16] Weighted Error Value: White=0.18 (very precise) /Black=0.86  Loses game:     	---       	Black=1      Mistake:       	---       	Black=6      Inaccurate:     	White=3     	Black=1      OK:         	White=10    	Black=4      Best:        	White=3     	Black=2} 1-0

[Event "FIDE World School-ch O-15 2025"]
[Site "Vrnjacka Banja"]
[Date "2025.03.20"]
[Round "1.5"]
[White "Durucay, Uygar"]
[Black "Kunapuli, Siddarth Sriaditya"]
[Result "1-0"]
[Annotator "NA RC"]
[ECO "D03"]
[WhiteElo "2159"]
[BlackElo "1829"]
[PlyCount "41"]
[EventDate "2025.03.19"]
[EventType "swiss"]
[EventCountry "SRB"]
[SourceTitle "playchess.com"]
[Source "ChessBase"]
[SourceQuality "1"]
[TimeControl "5400+30"]

1. d4 {[%emt 0:00:06]} Nf6 {[%emt 0:00:17]} 2. Nf3 {[%emt 0:00:12]} e6 {[%emt 0:00:06]} 3. Bg5 {[%emt 0:00:24]} h6 {[%emt 0:00:07]} 4. Bh4 {[%emt 0:00:21]} Be7 {[%emt 0:00:05]} 5. Nbd2 {[%emt 0:00:48]} d5 {[%emt 0:00:24]} 6. e3 {[%emt 0:00:14]} O-O {[%emt 0:00:33]} 7. Bd3 {[%emt 0:00:10]} Nbd7 {[%emt 0:03:26]} 8. c3 {[%emt 0:02:55]} c5 {[%emt 0:00:36]} 9. O-O {[%emt 0:04:40]} Re8 {[%emt 0:06:40]} 10. Ne5 {[%emt 0:00:12]} Nxe5 {[%emt 0:01:11]} 11. dxe5 {[%emt 0:00:46]} Nd7 {[%emt 0:00:08]} 12. Bxe7 {[%emt 0:00:22]} Qxe7 {[%emt 0:00:07]} 13. f4 {[%emt 0:00:04]} Rd8 {[%emt 0:05:46]} 14. Qh5 {[%emt 0:05:28]} d4 {[%emt 0:01:18]} 15. Nc4 {[%emt 0:01:16]} dxc3 {[%emt 0:02:35]} 16. bxc3 {[%emt 0:00:11]} Nb6 {[%emt 0:01:23]} 17. Nd6 {[%emt 0:00:13]} c4 {[%emt 0:00:04]} 18. Bc2 {[%emt 0:03:09]} Bd7 {[%emt 0:26:47]} 19. Rf3 {[%emt 0:01:09]} Nc8 {[%emt 0:04:03]} 20. Rg3 {[%emt 0:02:22]} Nxd6 {[%emt 0:00:08]} 21. Qxh6 {[%emt 0:00:41]} 1-0

[Event "FIDE World School-ch O-15 2025"]
[Site "Vrnjacka Banja"]
[Date "2025.03.20"]
[Round "1.6"]
[White "Abel Taji"]
[Black "Kutanjac, Aleksandar"]
[Result "0-1"]
[Annotator "NA RC"]
[ECO "C13"]
[WhiteElo "1819"]
[BlackElo "2103"]
[PlyCount "86"]
[EventDate "2025.03.19"]
[EventType "swiss"]
[EventCountry "SRB"]
[SourceTitle "playchess.com"]
[Source "ChessBase"]
[SourceQuality "1"]
[TimeControl "5400+30"]

1. e4 {[%emt 0:00:10]} e6 {[%emt 0:00:11]} 2. d4 {[%emt 0:00:14]} d5 {[%emt 0:00:05]} 3. Nd2 {[%emt 0:00:18]} dxe4 {[%emt 0:00:10]} 4. Nxe4 {[%emt 0:00:10]} Nd7 {[%emt 0:00:03]} 5. Nf3 {[%emt 0:00:45]} Ngf6 {[%emt 0:00:06]} 6. Bg5 {[%emt 0:01:26]} Be7 {[%emt 0:00:07]} 7. Bxf6 {[%emt 0:00:14]} Nxf6 {[%emt 0:00:12]} 8. Nxf6+ {[%emt 0:02:40]} Bxf6 {[%emt 0:00:09]} 9. c3 {[%emt 0:00:12]} O-O {[%emt 0:00:36]} 10. Bd3 {[%emt 0:00:51]} b6 {[%emt 0:00:50]} 11. Qc2 {[%emt 0:01:37]} h6 {[%emt 0:01:14]} 12. Be4 {[%emt 0:00:44]} Rb8 {[%emt 0:00:05]} 13. O-O {[%emt 0:00:34]} c5 {[%emt 0:02:49]} 14. Rad1 {[%emt 0:05:24]} Qc7 {[%emt 0:02:07]} 15. Rfe1 {[%emt 0:07:17]} Rd8 {[%emt 0:03:19]} 16. dxc5 {[%emt 0:06:12]} Rxd1 {[%emt 0:02:35]} 17. Rxd1 {[%emt 0:00:17]} bxc5 {[%emt 0:00:28]} 18. b3 {[%emt 0:14:59]} Bd7 {[%emt 0:03:45]} 19. c4 {[%emt 0:02:22]} Be8 {[%emt 0:01:03]} 20. g3 {[%emt 0:01:37]} g6 {[%emt 0:01:24]} 21. Nd2 {[%emt 0:07:21]} Bg7 {[%emt 0:01:02]} 22. Bg2 {[%emt 0:01:27]} Rd8 {[%emt 0:06:01]} 23. Nf3 {[%emt 0:00:56]} e5 {[%emt 0:03:28]} 24. Rxd8 {[%emt 0:02:38]} Qxd8 {[%emt 0:00:05]} 25. Qd2 {[%emt 0:00:59]} Qxd2 {[%emt 0:03:15]} 26. Nxd2 {[%emt 0:00:07]} f5 {[%emt 0:00:08]} 27. Bd5+ {[%emt 0:00:52]} Kf8 {[%emt 0:00:46]} 28. f3 {[%emt 0:00:51]} Ke7 {[%emt 0:00:38]} 29. Kf2 {[%emt 0:00:46]} h5 {[%emt 0:01:13]} 30. a3 {[%emt 0:03:24]} a5 {[%emt 0:01:42]} 31. Nf1 {[%emt 0:11:00]} Bh6 {[%emt 0:02:42]} 32. Ne3 {[%emt 0:02:44]} Kf6 {[%emt 0:00:36]} 33. Ke2 {[%emt 0:01:55]} Bxe3 {[%emt 0:03:02]} 34. Kxe3 {[%emt 0:00:10]} Bf7 {[%emt 0:00:06]} 35. Bxf7 {[%emt 0:09:02]} Kxf7 {[%emt 0:00:06]} 36. h4 {[%emt 0:02:35]} a4 {[%emt 0:01:03]} 37. bxa4 {[%emt 0:00:55]} Ke6 {[%emt 0:00:06]} 38. g4 {[%emt 0:07:03]} hxg4 {[%emt 0:02:57]} 39. fxg4 {[%emt 0:02:23]} fxg4 {[%emt 0:00:08]} 40. Kf2 {[%emt 0:00:49]} e4 {[%emt 0:00:12]} 41. Ke3 {[%emt 0:00:27]} g3 {[%emt 0:00:07]} 42. Ke2 {[%emt 0:00:09]} Kd6 {[%emt 0:00:13]} 43. Kf1 {[%emt 0:00:06]} e3 {[%emt 0:00:07]} 0-1

[Event "FIDE World School-ch O-15 2025"]
[Site "Vrnjacka Banja"]
[Date "2025.03.20"]
[Round "1.7"]
[White "Talgatov, Nazar"]
[Black "Kim, Yejun"]
[Result "0-1"]
[Annotator "NA RC"]
[ECO "B52"]
[WhiteElo "2083"]
[BlackElo "1798"]
[PlyCount "106"]
[EventDate "2025.03.19"]
[EventType "swiss"]
[EventCountry "SRB"]
[SourceTitle "playchess.com"]
[Source "ChessBase"]
[SourceQuality "1"]
[TimeControl "5400+30"]

1. e4 {[%emt 0:00:22]} c5 {[%emt 0:00:05]} 2. Nf3 {[%emt 0:00:30]} d6 {[%emt 0:00:09]} 3. Bb5+ {[%emt 0:00:57]} Bd7 {[%emt 0:00:47]} 4. Bxd7+ {[%emt 0:01:01]} Qxd7 {[%emt 0:00:35]} 5. c4 {[%emt 0:00:35]} Nc6 {[%emt 0:00:55]} 6. d4 {[%emt 0:01:06]} cxd4 {[%emt 0:00:07]} 7. Nxd4 {[%emt 0:00:05]} Nf6 {[%emt 0:00:05]} 8. Nc3 {[%emt 0:00:27]} g6 {[%emt 0:00:42]} 9. f3 {[%emt 0:00:34]} Bg7 {[%emt 0:00:08]} 10. Be3 {[%emt 0:00:06]} O-O {[%emt 0:00:06]} 11. O-O {[%emt 0:01:34]} Rfc8 {[%emt 0:03:36]} 12. b3 {[%emt 0:01:51]} Qd8 {[%emt 0:01:42]} 13. Qd2 {[%emt 0:02:37]} Qa5 {[%emt 0:04:20]} 14. Rfd1 {[%emt 0:03:13]} a6 {[%emt 0:04:21]} 15. a4 {[%emt 0:04:01]} Nd7 {[%emt 0:01:44]} 16. Rab1 {[%emt 0:01:49]} Nxd4 {[%emt 0:08:06]} 17. Bxd4 {[%emt 0:00:14]} Bxd4+ {[%emt 0:00:59]} 18. Qxd4 {[%emt 0:00:06]} Qc5 {[%emt 0:00:06]} 19. Kf1 {[%emt 0:18:18]} Qh5 {[%emt 0:22:17]} 20. Nd5 {[%emt 0:02:18]} Qh4 {[%emt 0:01:21]} 21. g3 {[%emt 0:04:56]} Qh3+ {[%emt 0:00:40]} 22. Kg1 {[%emt 0:00:32]} Qe6 {[%emt 0:03:43]} 23. f4 {[%emt 0:06:09]} f6 {[%emt 0:03:08]} 24. a5 {[%emt 0:07:29]} Rc6 {[%emt 0:02:18]} 25. Re1 {[%emt 0:02:41]} Rac8 {[%emt 0:00:19]} 26. Qa7 {[%emt 0:06:35]} Nc5 {[%emt 0:06:34]} 27. b4 {[%emt 0:02:12]} Nd3 {[%emt 0:00:15]} 28. Re3 {[%emt 0:02:03]} Rxc4 {[%emt 0:00:08]} 29. Rxd3 {[%emt 0:00:37]} Rc1+ {[%emt 0:00:17]} 30. Rxc1 {[%emt 0:05:02]} Rxc1+ {[%emt 0:00:04]} 31. Kf2 {[%emt 0:00:11]} Qxe4 {[%emt 0:00:06]} 32. Qe3 {[%emt 0:03:12]} Qh1 {[%emt 0:03:05]} 33. Qe2 {[%emt 0:03:53]} Qxh2+ {[%emt 0:00:45]} 34. Ke3 {[%emt 0:00:34]} Qg1+ {[%emt 0:01:41]} 35. Kd2 {[%emt 0:01:28]} Ra1 {[%emt 0:02:13]} 36. Kc3 {[%emt 0:07:56]} Qc1+ {[%emt 0:02:36]} 37. Kd4 {[%emt 0:00:50]} e5+ {[%emt 0:00:09]} 38. fxe5 {[%emt 0:00:56]} dxe5+ {[%emt 0:00:05]} 39. Ke4 {[%emt 0:00:36]} Qh1+ {[%emt 0:00:32]} 40. Rf3 {[%emt 0:08:36]} Re1 {[%emt 0:00:12]} 41. Nxf6+ {[%emt 0:00:10]} Kg7 {[%emt 0:00:12]} 42. Ne8+ {[%emt 0:00:20]} Kh6 {[%emt 0:01:01]} 43. Qxe1 {[%emt 0:00:35]} Qxe1+ {[%emt 0:00:06]} 44. Re3 {[%emt 0:00:05]} Qxb4+ {[%emt 0:00:06]} 45. Kxe5 {[%emt 0:00:05]} Qc5+ {[%emt 0:00:51]} 46. Ke4 {[%emt 0:00:16]} Qxa5 {[%emt 0:02:27]} 47. Nd6 {[%emt 0:00:38]} Qb4+ {[%emt 0:00:31]} 48. Kd5 {[%emt 0:00:07]} Qd2+ {[%emt 0:00:03]} 49. Ke4 {[%emt 0:00:34]} Qxd6 {[%emt 0:00:06]} 50. Kf3 {[%emt 0:00:13]} b5 {[%emt 0:00:11]} 51. g4 {[%emt 0:00:04]} Kg5 {[%emt 0:00:15]} 52. Re4 {[%emt 0:00:03]} Qd3+ {[%emt 0:00:10]} 53. Re3 {[%emt 0:00:02]} Qxe3+ {[%emt 0:00:11]} 0-1

[Event "FIDE World School-ch O-15 2025"]
[Site "Vrnjacka Banja"]
[Date "2025.03.20"]
[Round "1.8"]
[White "Milosevic, Lazar M"]
[Black "Dascalescu, Adelin-Stefan"]
[Result "0-1"]
[Annotator "NA RC"]
[ECO "C01"]
[WhiteElo "1798"]
[BlackElo "2061"]
[PlyCount "32"]
[EventDate "2025.03.19"]
[EventType "swiss"]
[EventCountry "SRB"]
[SourceTitle "playchess.com"]
[Source "ChessBase"]
[SourceQuality "1"]
[TimeControl "5400+30"]

1. e4 {[%emt 0:00:24]} c5 {[%emt 0:00:02]} 2. Nf3 {[%emt 0:00:50]} e6 {[%emt 0:01:09]} 3. d4 {[%emt 0:01:39]} d5 {[%emt 0:00:03]} 4. exd5 {[%emt 0:02:22]} exd5 {[%emt 0:00:05]} 5. c4 {[%emt 0:05:00]} Nf6 {[%emt 0:02:22]} 6. Nc3 {[%emt 0:02:35]} cxd4 {[%emt 0:05:28]} 7. Nxd5 {[%emt 0:05:56]} Nxd5 {[%emt 0:01:00]} 8. cxd5 {[%emt 0:00:11]} Qa5+ {[%emt 0:00:22]} 9. Bd2 {[%emt 0:07:32]} Qxd5 {[%emt 0:00:33]} 10. Qa4+ {[%emt 0:00:22]} Nc6 {[%emt 0:00:54]} 11. Bb5 {[%emt 0:01:55]} Bc5 {[%emt 0:01:12]} 12. O-O {[%emt 0:06:16]} O-O {[%emt 0:00:32]} 13. h3 {[%emt 0:02:22]} Bxh3 {[%emt 0:00:23]} 14. gxh3 {[%emt 0:04:44]} Qxf3 {[%emt 0:00:12]} 15. Kh2 {[%emt 0:01:00]} Bd6+ {[%emt 0:00:16]} 16. Kg1 {[%emt 0:00:19]} Qxh3 {[%emt 0:00:01]} 0-1